fUSD/lending_fUSD_20260526
["ID","MTS","AMOUNT","RATE_DAILY","PERIOD"]
[423022568,1779762632000,-303.81792737,0.000143,2]
[423022579,1779762632000,-178.0,0.000148,2]
[423022575,1779762632000,-1027.542,0.00014798,2]
[423022574,1779762632000,-166.71,0.00014703,2]
[423022573,1779762632000,-500.0,0.00014696,2]
[423022571,1779762632000,-14073.98,0.00014497,2]
[423022570,1779762632000,-207.93,0.000144,2]
[423022572,1779762632000,-409.92474949,0.000145,2]
[423022563,1779762632000,-152.0,0.0001422,7]
[423022577,1779762632000,-163.335,0.00014798,2]
[423022625,1779762638000,-308.60668889,0.000149,2]
[423022628,1779762640000,-1950.0,0.000149,2]
[423022629,1779762640000,-727.094656,0.000149,2]
[423022630,1779762640000,-471.95013369,0.000149,2]
[423022664,1779762641000,-1419.53603552,0.000149,2]
[423022687,1779762643000,-11898.93041716,0.000149,2]
[423022686,1779762643000,-388.31100824,0.000149,2]
[423022731,1779762646000,-511.0,0.000149,2]
[423022726,1779762646000,-11684.57819722,0.000149,2]
[423022724,1779762646000,-15033.17471981,0.000149,2]
[423022732,1779762669000,167.0,0.00028082,120]
[423022735,1779762807000,155.65,7.665e-05,2]
[423022758,1779763002000,201.71,0.0001,2]
[423022796,1779763740000,1000.0,0.00028081,120]
[423022799,1779763832000,-300.0,0.00013787,2]
[423022798,1779763832000,-257.0,0.00013787,2]
[423022801,1779763832000,-300.0,0.00013787,2]
[423022800,1779763832000,-1200.0,0.00013787,2]
[423022803,1779763832000,-1254.09285305,0.00013788,2]
[423022802,1779763832000,-1326.42896817,0.00013788,2]
[423022805,1779763832000,-420.0,0.00013788,2]
[423022806,1779763832000,-14008.45535382,0.00013788,2]
[423022809,1779763832000,-8045.54526625,0.00013788,2]
[423022808,1779763832000,-157151.39174894,0.00013788,2]
[423022807,1779763832000,-688.58850667,0.00013788,2]
[423022810,1779763832000,-7393.85317137,0.00013788,2]
[423022804,1779763832000,-1015.79310861,0.00013788,2]
[423022850,1779763838000,-499.29,0.00014497,2]
[423022847,1779763838000,-200.21,0.00014187,2]
[423022851,1779763838000,-1971.88982743,0.00014533,2]
[423022846,1779763838000,-84.42806949,0.00014,2]
[423022845,1779763838000,-165.57193051,0.00014,2]
[423022844,1779763838000,-502.31004729,0.00013987,2]
[423022837,1779763838000,-81.44166025,0.00013788,2]
[423022841,1779763838000,-154.31796116,0.00013885,2]
[423022840,1779763838000,-2000.0,0.00013838,2]
[423022839,1779763838000,-185.57,0.00013835,2]
[423022838,1779763838000,-1000.0,0.000138,2]
[423022836,1779763838000,-2774.49316287,0.00013788,2]
[423022849,1779763838000,-783.26,0.00014497,2]
[423022842,1779763838000,-1647.33386282,0.00013887,2]
[423022848,1779763838000,-2736.48036065,0.00014284,2]
[423022843,1779763838000,-150.0,0.00013887,2]
[423022855,1779763838000,-2232.0,0.000146,2]
[423022852,1779763838000,-1763.11017257,0.00014533,2]
[423022867,1779763838000,-7065.62967323,0.00015,5]
[423022866,1779763838000,-44700.0,0.00015,5]
[423022865,1779763838000,-4716.83026371,0.00015,5]
[423022863,1779763838000,-428.21908967,0.00015,2]
[423022861,1779763838000,-211.10650579,0.00014999,2]
[423022862,1779763838000,-120321.87281834,0.00015,2]
[423022864,1779763838000,-34936.62960953,0.00015,5]
[423022860,1779763838000,-283.29039134,0.00014999,2]
[423022856,1779763838000,-162.0471297,0.00014648,2]
[423022853,1779763838000,-3133.28531061,0.00014548,2]
[423022857,1779763838000,-1146.422,0.00014856,2]
[423022854,1779763838000,-1000.0,0.000146,3]
[423022858,1779763838000,-200.0,0.0001488,2]
[423022859,1779763838000,-291.16560811,0.00014908,2]
[423022931,1779763843000,-3300.0,0.00015,5]
[423022932,1779763843000,-3099.69057919,0.00015,5]
[423022968,1779763844000,-500.0,0.00015041,2]
[423022972,1779763844000,-500.0,0.00015041,2]
[423022978,1779763844000,-503.72914347,0.00015041,2]
[423022976,1779763844000,-242.65750225,0.00015041,2]
[423022974,1779763844000,-499.79583485,0.00015041,2]
[423022961,1779763844000,-500.0,0.00015041,2]
[423022964,1779763844000,-500.0,0.00015041,2]
[423022966,1779763844000,-500.0,0.00015041,2]
[423022995,1779763844000,-215.38528485,0.00015496,2]
[423022983,1779763844000,-420.0,0.00015108,2]
[423022985,1779763844000,-1680.0,0.00015166,2]
[423022989,1779763844000,-900.0,0.00015276,2]
[423022987,1779763844000,-629.69617817,0.0001518,2]
[423022991,1779763844000,-155.65,0.0001533,2]
[423022980,1779763844000,-2754.25494833,0.0001505,2]
[423022970,1779763844000,-500.0,0.00015041,2]
[423022993,1779763844000,-1000.0,0.000154,2]
[423022959,1779763844000,-163.96766987,0.00015041,2]
[423022957,1779763844000,-500.0,0.00015041,2]
[423022955,1779763844000,-500.0,0.00015041,2]
[423022947,1779763844000,-500.0,0.00015041,2]
[423022999,1779763844000,-150.0,0.000159,2]
[423022933,1779763844000,-3455.85415716,0.00015,5]
[423022934,1779763844000,-2807.63548679,0.00015,5]
[423022935,1779763844000,-120722.97143618,0.00015,2]
[423022936,1779763844000,-154.019982,0.00015,2]
[423022937,1779763844000,-151.0,0.00015,2]
[423022939,1779763844000,-214.699341,0.00015,2]
[423022938,1779763844000,-151.0,0.00015,2]
[423022940,1779763844000,-151.0,0.00015,2]
[423022941,1779763844000,-151.0,0.00015,2]
[423022953,1779763844000,-500.0,0.00015041,2]
[423022951,1779763844000,-500.0,0.00015041,2]
[423022944,1779763844000,-500.0,0.00015041,2]
[423022942,1779763844000,-255.0,0.00015012,2]
[423022943,1779763844000,-500.0,0.00015041,2]
[423022949,1779763844000,-500.0,0.00015041,2]
[423022945,1779763844000,-500.0,0.00015041,2]
[423022946,1779763844000,-214.06608032,0.00015041,2]
[423022997,1779763844000,-2000.0,0.00015567,2]
[423023006,1779763844000,-169.12928844,0.000161,2]
[423023004,1779763844000,-227.09818462,0.00016,2]
[423023058,1779763844000,-289.15744,0.00016438,2]
[423023050,1779763844000,-151.0,0.00016438,2]
[423023060,1779763844000,-289.15744,0.00016438,2]
[423023052,1779763844000,-151.0,0.00016438,2]
[423023056,1779763844000,-289.15744,0.00016438,2]
[423023066,1779763844000,-2041.593492,0.00016438,2]
[423023062,1779763844000,-2041.593492,0.00016438,2]
[423023055,1779763844000,-289.15744,0.00016438,2]
[423023048,1779763844000,-151.0,0.00016438,2]
[423023054,1779763844000,-151.0,0.00016438,2]
[423023070,1779763844000,-587.0,0.00016555,2]
[423023072,1779763844000,-169.12928844,0.000166,2]
[423023074,1779763844000,-900.0,0.00016646,2]
[423023076,1779763844000,-2351.0,0.00016682,2]
[423023080,1779763844000,-3100.0,0.000169,6]
[423023082,1779763844000,-500.0,0.000169,6]
[423023078,1779763844000,-168.05,0.00016712,2]
[423023001,1779763844000,-300.0,0.00016,2]
[423023068,1779763844000,-2041.593492,0.00016438,2]
[423023046,1779763844000,-151.0,0.00016438,2]
[423023064,1779763844000,-2041.593492,0.00016438,2]
[423023038,1779763844000,-169.308741,0.00016438,2]
[423023013,1779763844000,-227.09818462,0.000162,2]
[423023040,1779763844000,-169.308741,0.00016438,2]
[423023021,1779763844000,-169.12928844,0.000164,2]
[423023010,1779763844000,-316.0,0.000162,2]
[423023008,1779763844000,-227.09818462,0.000161,2]
[423023015,1779763844000,-309.0,0.000162,2]
[423023019,1779763844000,-169.12928844,0.000163,2]
[423023023,1779763844000,-478.26018898,0.00016438,2]
[423023025,1779763844000,-2380.0,0.00016438,2]
[423023016,1779763844000,-433.0,0.00016234,2]
[423023028,1779763844000,-1139.0,0.00016438,2]
[423023026,1779763844000,-151.0,0.00016438,2]
[423023032,1779763844000,-154.403134,0.00016438,2]
[423023036,1779763844000,-169.308741,0.00016438,2]
[423023044,1779763844000,-151.0,0.00016438,2]
[423023031,1779763844000,-155.581879,0.00016438,2]
[423023042,1779763844000,-997.0,0.00016438,2]
[423023035,1779763844000,-169.308741,0.00016438,2]
[423023151,1779763845000,-2137.0,0.0001835,2]
[423023142,1779763845000,-478.7692772,0.00017902,2]
[423023150,1779763845000,-168.45,0.00018252,2]
[423023148,1779763845000,-823.0,0.00018141,2]
[423023138,1779763845000,-176.55,0.000178,2]
[423023136,1779763845000,-9672.39,0.00017728,2]
[423023140,1779763845000,-478.7,0.00017815,2]
[423023154,1779763845000,-5360.45,0.00018356,2]
[423023144,1779763845000,-1310.0,0.00017945,2]
[423023146,1779763845000,-350.0,0.00018,2]
[423023162,1779763845000,-480.62,0.00018416,2]
[423023158,1779763845000,-424.0,0.00018379,5]
[423023160,1779763845000,-2380.0,0.0001841,2]
[423023178,1779763845000,-965.0,0.00019,2]
[423023174,1779763845000,-5000.0,0.0001895,2]
[423023172,1779763845000,-478.74,0.00018923,2]
[423023176,1779763845000,-257.0,0.00019,2]
[423023166,1779763845000,-655.959597,0.0001863,2]
[423023164,1779763845000,-556.0,0.00018625,5]
[423023180,1779763845000,-152.0,0.00019,2]
[423023132,1779763845000,-9999.99,0.00017728,2]
[423023156,1779763845000,-163.0,0.00018376,2]
[423023123,1779763845000,-338.0,0.00017539,2]
[423023092,1779763845000,-500.0,0.00016967,2]
[423023121,1779763845000,-1647.3338628,0.00017525,2]
[423023168,1779763845000,-478.73,0.00018921,2]
[423023084,1779763845000,-500.0,0.00016967,2]
[423023087,1779763845000,-500.0,0.00016967,2]
[423023089,1779763845000,-500.0,0.00016967,2]
[423023104,1779763845000,-3133.28531061,0.00016994,2]
[423023102,1779763845000,-583.77661001,0.00016967,2]
[423023095,1779763845000,-500.0,0.00016967,2]
[423023109,1779763845000,-998.959574,0.0001726,2]
[423023106,1779763845000,-478.7,0.00017203,2]
[423023096,1779763845000,-500.0,0.00016967,2]
[423023100,1779763845000,-500.0,0.00016967,2]
[423023098,1779763845000,-500.0,0.00016967,2]
[423023111,1779763845000,-1310.0,0.0001726,2]
[423023113,1779763845000,-427.0,0.0001726,2]
[423023115,1779763845000,-2000.0,0.00017297,2]
[423023124,1779763845000,-478.7,0.00017555,2]
[423023117,1779763845000,-478.7,0.00017318,2]
[423023126,1779763845000,-14073.98,0.00017572,2]
[423023128,1779763845000,-478.7,0.00017705,2]
[423023130,1779763845000,-9999.99,0.00017728,2]
[423023119,1779763845000,-478.7,0.00017458,2]
[423023134,1779763845000,-150.99,0.00017728,2]
[423023170,1779763845000,-478.75,0.00018923,2]
[423023205,1779763845000,-209.43075879,0.00019178,2]
[423023188,1779763845000,-1597.0,0.00019,2]
[423023237,1779763845000,-151.0,0.00019178,2]
[423023250,1779763845000,-151.0,0.00019178,2]
[423023252,1779763845000,-151.0,0.00019178,2]
[423023246,1779763845000,-151.0,0.00019178,2]
[423023256,1779763845000,-151.0,0.00019178,2]
[423023244,1779763845000,-151.0,0.00019178,2]
[423023240,1779763845000,-151.0,0.00019178,2]
[423023254,1779763845000,-151.0,0.00019178,2]
[423023242,1779763845000,-151.0,0.00019178,2]
[423023259,1779763845000,-151.0,0.00019178,2]
[423023257,1779763845000,-151.0,0.00019178,2]
[423023271,1779763845000,-151.0,0.00019178,2]
[423023261,1779763845000,-151.0,0.00019178,2]
[423023269,1779763845000,-151.0,0.00019178,2]
[423023266,1779763845000,-151.0,0.00019178,2]
[423023274,1779763845000,-151.0,0.00019178,2]
[423023267,1779763845000,-151.0,0.00019178,2]
[423023275,1779763845000,-151.0,0.00019178,2]
[423023280,1779763845000,-151.0,0.00019178,2]
[423023277,1779763845000,-151.0,0.00019178,2]
[423023186,1779763845000,-154.0,0.00019,2]
[423023248,1779763845000,-151.0,0.00019178,2]
[423023223,1779763845000,-492.79943,0.00019178,2]
[423023263,1779763845000,-151.0,0.00019178,2]
[423023225,1779763845000,-492.79943,0.00019178,2]
[423023221,1779763845000,-151.0,0.00019178,2]
[423023184,1779763845000,-830.0,0.00019,2]
[423023182,1779763845000,-179.0,0.00019,2]
[423023191,1779763845000,-342.0,0.00019,2]
[423023201,1779763845000,-150.0,0.00019178,2]
[423023195,1779763845000,-2000.0,0.00019027,2]
[423023199,1779763845000,-150.0,0.00019178,2]
[423023197,1779763845000,-480.6201614,0.00019044,2]
[423023203,1779763845000,-150.0,0.00019178,2]
[423023212,1779763845000,-250.0,0.00019178,2]
[423023193,1779763845000,-157.0,0.00019,2]
[423023209,1779763845000,-250.0,0.00019178,2]
[423023233,1779763845000,-151.0,0.00019178,2]
[423023214,1779763845000,-263.83755641,0.00019178,2]
[423023227,1779763845000,-492.79943,0.00019178,2]
[423023219,1779763845000,-151.0,0.00019178,2]
[423023229,1779763845000,-492.79943,0.00019178,2]
[423023231,1779763845000,-151.0,0.00019178,2]
[423023217,1779763845000,-151.0,0.00019178,2]
[423023207,1779763845000,-250.0,0.00019178,2]
[423023279,1779763845000,-151.0,0.00019178,2]
[423023235,1779763845000,-151.0,0.00019178,2]
[423023333,1779763846000,-151.0,0.00019178,2]
[423023325,1779763846000,-151.0,0.00019178,2]
[423023323,1779763846000,-151.0,0.00019178,2]
[423023321,1779763846000,-151.0,0.00019178,2]
[423023331,1779763846000,-151.0,0.00019178,2]
[423023327,1779763846000,-151.0,0.00019178,2]
[423023335,1779763846000,-151.0,0.00019178,2]
[423023343,1779763846000,-151.0,0.00019178,2]
[423023339,1779763846000,-151.0,0.00019178,2]
[423023338,1779763846000,-151.0,0.00019178,2]
[423023346,1779763846000,-151.0,0.00019178,2]
[423023342,1779763846000,-151.0,0.00019178,2]
[423023350,1779763846000,-151.0,0.00019178,2]
[423023336,1779763846000,-151.0,0.00019178,2]
[423023352,1779763846000,-151.0,0.00019178,2]
[423023329,1779763846000,-151.0,0.00019178,2]
[423023315,1779763846000,-151.0,0.00019178,2]
[423023292,1779763846000,-151.0,0.00019178,2]
[423023311,1779763846000,-151.0,0.00019178,2]
[423023354,1779763846000,-151.0,0.00019178,2]
[423023286,1779763846000,-151.0,0.00019178,2]
[423023283,1779763846000,-151.0,0.00019178,2]
[423023288,1779763846000,-151.0,0.00019178,2]
[423023298,1779763846000,-151.0,0.00019178,2]
[423023302,1779763846000,-151.0,0.00019178,2]
[423023303,1779763846000,-151.0,0.00019178,2]
[423023301,1779763846000,-151.0,0.00019178,2]
[423023300,1779763846000,-151.0,0.00019178,2]
[423023290,1779763846000,-151.0,0.00019178,2]
[423023296,1779763846000,-151.0,0.00019178,2]
[423023294,1779763846000,-151.0,0.00019178,2]
[423023319,1779763846000,-151.0,0.00019178,2]
[423023317,1779763846000,-151.0,0.00019178,2]
[423023305,1779763846000,-151.0,0.00019178,2]
[423023309,1779763846000,-151.0,0.00019178,2]
[423023307,1779763846000,-151.0,0.00019178,2]
[423023313,1779763846000,-151.0,0.00019178,2]
[423023348,1779763846000,-151.0,0.00019178,2]
[423023362,1779763846000,-151.0,0.00019178,2]
[423023355,1779763846000,-151.0,0.00019178,2]
[423023386,1779763846000,-4983.58329316,0.0002,2]
[423023384,1779763846000,-5282.54583363,0.0002,2]
[423023380,1779763846000,-1152.0,0.00019878,2]
[423023382,1779763846000,-783.26,0.00019968,2]
[423023385,1779763846000,-153.81315042,0.0002,2]
[423023383,1779763846000,-499.29,0.00019968,2]
[423023381,1779763846000,-309.90362449,0.000199,2]
[423023379,1779763846000,-178.47,0.000198,4]
[423023387,1779763846000,-400.0,0.0002,2]
[423023393,1779763846000,-151.0,0.0002,2]
[423023389,1779763846000,-2715.0,0.0002,2]
[423023390,1779763846000,-152.050344,0.0002,2]
[423023391,1779763846000,-151.0,0.0002,2]
[423023357,1779763846000,-151.0,0.00019178,2]
[423023395,1779763846000,-153.860644,0.0002,2]
[423023394,1779763846000,-151.0,0.0002,2]
[423023392,1779763846000,-161.732396,0.0002,2]
[423023377,1779763846000,-478.75,0.00019676,2]
[423023388,1779763846000,-151.19,0.0002,2]
[423023376,1779763846000,-3133.28531061,0.0001944,2]
[423023378,1779763846000,-1000.0,0.000198,5]
[423023358,1779763846000,-151.0,0.00019178,2]
[423023360,1779763846000,-151.0,0.00019178,2]
[423023368,1779763846000,-151.0,0.00019178,2]
[423023369,1779763846000,-151.0,0.00019178,2]
[423023370,1779763846000,-151.0,0.00019178,2]
[423023361,1779763846000,-167.478335,0.00019178,2]
[423023363,1779763846000,-151.0,0.00019178,2]
[423023359,1779763846000,-151.0,0.00019178,2]
[423023365,1779763846000,-151.0,0.00019178,2]
[423023364,1779763846000,-151.0,0.00019178,2]
[423023367,1779763846000,-167.478335,0.00019178,2]
[423023371,1779763846000,-151.0,0.00019178,2]
[423023372,1779763846000,-151.0,0.00019178,2]
[423023374,1779763846000,-274.221886,0.00019178,2]
[423023375,1779763846000,-167.478335,0.00019178,2]
[423023366,1779763846000,-151.0,0.00019178,2]
[423023373,1779763846000,-167.478335,0.00019178,2]
[423023427,1779763847000,-500.0,0.0002,2]
[423023413,1779763847000,-492.79943,0.0002,2]
[423023416,1779763847000,-169.308741,0.0002,2]
[423023417,1779763847000,-342.0,0.0002,2]
[423023419,1779763847000,-169.308741,0.0002,2]
[423023418,1779763847000,-169.308741,0.0002,2]
[423023422,1779763847000,-169.25479377,0.0002,2]
[423023421,1779763847000,-871.0,0.0002,2]
[423023424,1779763847000,-167.478335,0.0002,2]
[423023423,1779763847000,-167.478335,0.0002,2]
[423023426,1779763847000,-167.478335,0.0002,2]
[423023425,1779763847000,-167.478335,0.0002,2]
[423023414,1779763847000,-492.79943,0.0002,2]
[423023420,1779763847000,-169.308741,0.0002,2]
[423023411,1779763847000,-2041.593492,0.0002,2]
[423023405,1779763847000,-289.15744,0.0002,2]
[423023409,1779763847000,-2041.593492,0.0002,2]
[423023407,1779763847000,-1597.0,0.0002,2]
[423023410,1779763847000,-2041.593492,0.0002,2]
[423023403,1779763847000,-289.15744,0.0002,2]
[423023404,1779763847000,-289.15744,0.0002,2]
[423023406,1779763847000,-163.46366427,0.0002,2]
[423023400,1779763847000,-179.0,0.0002,2]
[423023402,1779763847000,-289.15744,0.0002,2]
[423023408,1779763847000,-2041.593492,0.0002,2]
[423023401,1779763847000,-830.0,0.0002,2]
[423023398,1779763847000,-965.0,0.0002,2]
[423023399,1779763847000,-152.0,0.0002,2]
[423023397,1779763847000,-257.0,0.0002,2]
[423023396,1779763847000,-2171.0,0.0002,2]
[423023412,1779763847000,-492.79943,0.0002,2]
[423023428,1779763847000,-609.90418647,0.0002,2]
[423023415,1779763847000,-492.79943,0.0002,2]
[423023430,1779763847000,-151.0,0.0002,2]
[423023452,1779763847000,-151.0,0.00021,2]
[423023450,1779763847000,-2000.0,0.00020757,2]
[423023448,1779763847000,-150.54790893,0.0002058,2]
[423023453,1779763847000,-257.0,0.00021,2]
[423023451,1779763847000,-169.78,0.00020893,2]
[423023455,1779763847000,-152.0,0.00021,2]
[423023446,1779763847000,-663.28,0.00020548,2]
[423023457,1779763847000,-830.0,0.00021,2]
[423023459,1779763847000,-342.0,0.00021,2]
[423023456,1779763847000,-179.0,0.00021,2]
[423023461,1779763847000,-1718.90090721,0.00021,2]
[423023462,1779763847000,-1647.3338628,0.00021163,2]
[423023460,1779763847000,-3440.50822589,0.00021,2]
[423023429,1779763847000,-151.0,0.0002,2]
[423023454,1779763847000,-965.0,0.00021,2]
[423023449,1779763847000,-168.05,0.00020639,2]
[423023458,1779763847000,-1597.0,0.00021,2]
[423023444,1779763847000,-520.53,0.00020381,2]
[423023447,1779763847000,-150.0,0.0002058,2]
[423023432,1779763847000,-158.120003,0.0002,2]
[423023431,1779763847000,-151.0,0.0002,2]
[423023433,1779763847000,-46242.79,0.0002,2]
[423023435,1779763847000,-931.48,0.00020211,2]
[423023436,1779763847000,-1355.0,0.00020211,2]
[423023438,1779763847000,-1273.522,0.00020211,2]
[423023434,1779763847000,-3560.945,0.00020211,2]
[423023437,1779763847000,-519.0,0.00020211,2]
[423023439,1779763847000,-150.0,0.00020211,2]
[423023442,1779763847000,-6081.225,0.00020211,2]
[423023440,1779763847000,-418.0,0.00020211,2]
[423023443,1779763847000,-2380.0,0.00020381,2]
[423023441,1779763847000,-931.0,0.00020211,2]
[423023445,1779763847000,-2760.44,0.00020548,2]
[423023495,1779763848000,-1000.0,0.000214,2]
[423023483,1779763848000,-174.61919141,0.000214,2]
[423023489,1779763848000,-1000.0,0.000214,2]
[423023488,1779763848000,-174.61919141,0.000214,2]
[423023490,1779763848000,-151.0,0.000214,2]
[423023496,1779763848000,-192.01309766,0.000214,2]
[423023494,1779763848000,-151.0,0.000214,2]
[423023485,1779763848000,-152.0,0.000214,2]
[423023491,1779763848000,-152.0,0.000214,2]
[423023500,1779763848000,-152.0,0.000214,2]
[423023498,1779763848000,-151.0,0.000214,2]
[423023497,1779763848000,-1191.11104074,0.000214,2]
[423023493,1779763848000,-500.0,0.000214,2]
[423023501,1779763848000,-7965.41053267,0.000214,2]
[423023503,1779763848000,-151.0,0.000214,2]
[423023502,1779763848000,-169.65286353,0.000214,2]
[423023506,1779763848000,-151.0,0.000214,2]
[423023486,1779763848000,-578.20924308,0.000214,2]
[423023492,1779763848000,-578.20924308,0.000214,2]
[423023487,1779763848000,-500.0,0.000214,2]
[423023464,1779763848000,-3469.25545848,0.000214,2]
[423023482,1779763848000,-151.0,0.000214,2]
[423023467,1779763848000,-346.92554584,0.000214,2]
[423023468,1779763848000,-578.20924308,0.000214,2]
[423023463,1779763848000,-6472.96,0.0002137,2]
[423023470,1779763848000,-174.61919141,0.000214,2]
[423023504,1779763848000,-500.0,0.000214,2]
[423023466,1779763848000,-155.94318896,0.000214,2]
[423023465,1779763848000,-174.61919141,0.000214,2]
[423023469,1779763848000,-174.61919141,0.000214,2]
[423023472,1779763848000,-213.11370347,0.000214,2]
[423023471,1779763848000,-200.0,0.000214,2]
[423023473,1779763848000,-279.9045709,0.000214,2]
[423023475,1779763848000,-500.0,0.000214,2]
[423023476,1779763848000,-151.0,0.000214,2]
[423023480,1779763848000,-500.0,0.000214,2]
[423023477,1779763848000,-1734.62772924,0.000214,2]
[423023474,1779763848000,-151.0,0.000214,2]
[423023479,1779763848000,-743.50770149,0.000214,2]
[423023478,1779763848000,-9673.96128716,0.000214,2]
[423023481,1779763848000,-174.61919141,0.000214,2]
[423023484,1779763848000,-151.0,0.000214,2]
[423023507,1779763848000,-152.0,0.000214,2]
[423023499,1779763848000,-200.0,0.000214,2]
[423023505,1779763848000,-535.88118868,0.000214,2]
[423023537,1779763848000,-151.0,0.000214,2]
[423023538,1779763848000,-152.0,0.000214,2]
[423023545,1779763848000,-500.0,0.000214,2]
[423023541,1779763848000,-500.0,0.000214,2]
[423023542,1779763848000,-152.0,0.000214,2]
[423023539,1779763848000,-151.0,0.000214,2]
[423023547,1779763848000,-151.0,0.000214,2]
[423023546,1779763848000,-152.0,0.000214,2]
[423023543,1779763848000,-151.0,0.000214,2]
[423023540,1779763848000,-151.0,0.000214,2]
[423023548,1779763848000,-151.0,0.000214,2]
[423023551,1779763848000,-151.0,0.000214,2]
[423023556,1779763848000,-151.0,0.000214,2]
[423023552,1779763848000,-151.0,0.000214,2]
[423023554,1779763848000,-152.0,0.000214,2]
[423023553,1779763848000,-500.0,0.000214,2]
[423023550,1779763848000,-152.0,0.000214,2]
[423023555,1779763848000,-151.0,0.000214,2]
[423023510,1779763848000,-151.0,0.000214,2]
[423023557,1779763848000,-152.0,0.000214,2]
[423023549,1779763848000,-500.0,0.000214,2]
[423023535,1779763848000,-151.0,0.000214,2]
[423023544,1779763848000,-151.0,0.000214,2]
[423023533,1779763848000,-500.0,0.000214,2]
[423023536,1779763848000,-500.0,0.000214,2]
[423023511,1779763848000,-152.0,0.000214,2]
[423023512,1779763848000,-601.3376128,0.000214,2]
[423023527,1779763848000,-151.0,0.000214,2]
[423023526,1779763848000,-330.36306978,0.000214,2]
[423023508,1779763848000,-151.0,0.000214,2]
[423023525,1779763848000,-151.0,0.000214,2]
[423023514,1779763848000,-151.0,0.000214,2]
[423023516,1779763848000,-500.0,0.000214,2]
[423023509,1779763848000,-500.0,0.000214,2]
[423023518,1779763848000,-151.0,0.000214,2]
[423023520,1779763848000,-151.0,0.000214,2]
[423023524,1779763848000,-500.0,0.000214,2]
[423023528,1779763848000,-500.0,0.000214,2]
[423023530,1779763848000,-151.0,0.000214,2]
[423023532,1779763848000,-152.0,0.000214,2]
[423023534,1779763848000,-151.0,0.000214,2]
[423023531,1779763848000,-151.0,0.000214,2]
[423023529,1779763848000,-152.0,0.000214,2]
[423023522,1779763848000,-152.0,0.000214,2]
[423023614,1779763849000,-156.11323374,0.00021665,2]
[423023630,1779763849000,-492.79943,0.00021675,2]
[423023624,1779763849000,-289.15744,0.00021675,2]
[423023600,1779763849000,-9211.34798984,0.0002162,2]
[423023609,1779763849000,-167.478335,0.00021639,2]
[423023606,1779763849000,-167.478335,0.00021639,2]
[423023626,1779763849000,-492.79943,0.00021675,2]
[423023603,1779763849000,-167.478335,0.00021639,2]
[423023612,1779763849000,-167.478335,0.00021639,2]
[423023628,1779763849000,-492.79943,0.00021675,2]
[423023647,1779763849000,-151.0,0.00021675,2]
[423023617,1779763849000,-289.15744,0.00021675,2]
[423023632,1779763849000,-492.79943,0.00021675,2]
[423023636,1779763849000,-169.308741,0.00021675,2]
[423023634,1779763849000,-169.308741,0.00021675,2]
[423023642,1779763849000,-151.0,0.00021675,2]